Workbook

Sheet GANO
A1: GANO İLE YATAY GEÇİŞ BAŞVURULARI DEĞERLENDİRME ÇİZELGESİ
A2: S.NO | B2: ÖĞRENCİNİN ADI SOYADI | C2: ÖĞRENCİNİN GELDİĞİ PROGRAM | D2: BAŞVURDUĞU PROGRAM | E2: BELGE DURUMU | F2: GANO | G2: GANO % 60 | H2: YKS PUANI | I2: YKS PUANI % 40 | J2: DEĞERLENDİRME PUANI | K2: AÇIKLAMA
A3: 1 | B3: Tuğçe SATIR | C3: İlk ve Acil Yardım | D3: İlk ve Acil Yardım | E3: Var | F3: 91.13 | G3: =F3*60% -> 54.678 | H3: 292.55 | I3: =H3*40% -> 117.02 | J3: =SUM(G3,I3) -> 171.70 | K3: Uygundur
A4: 2 | B4: Saadet TUTAR | C4: İlk ve Acil Yardım | D4: İlk ve Acil Yardım | E4: Var | F4: 85.76 | G4: =F4*60% -> 51.456 | H4: 294.58 | I4: =H4*40% -> 117.832 | J4: =SUM(G4,I4) -> 169.288 | K4: Uygundur
A5: 3 | B5: Murat ALKAŞ | C5: İlk ve Acil Yardım | D5: İlk ve Acil Yardım | E5: Var | F5: 74.33 | G5: 44.598 | H5: 295.98 | I5: 118.3916 | J5: 162.9896 | K5: Uygundur
A6: 4 | B6: Birsen GÜRBÜZ | C6: İlk ve Acil Yardım | D6: İlk ve Acil Yardım | E6: Var | F6: 82.03 | G6: =F6*60% -> 49.218 | H6: 283.59 | I6: =H6*40% -> 113.4348 | J6: =SUM(G6,I6) -> 162.6528 | K6: Yedek-1
A7: 5 | B7: Hilal DOĞAN | C7: İlk ve Acil Yardım | D7: İlk ve Acil Yardım | E7: Var | F7: 66.86 | G7: =F7*60% -> 40.116 | H7: 264.24 | I7: =H7*40% -> 105.6972 | J7: =SUM(G7,I7) -> 145.8132 | K7: Yedek-2
B8: ZEYNEP COŞAN | C8: FİZYOTERAPİ PR. | D8: FİZYOTERAPİ PR. | E8: VAR | F8: 66.16 | G8: 39.696 | H8: 260.6 | I8: 104.241584 | J8: 143.937584 | K8: UYGUNDUR
A9: 6 | B9: Eren Aksoy | C9: Sağlık Kurumları | D9: Sağlık Kurumları | E9: Var | F9: 60.1 | G9: 36.06 | H9: 263.05 | I9: 105.22 | J9: 141.28 | K9: Uygundur
C10: İşletmeciliği | D10: İşletmeciliği
A11: 7 | B11: Leyla Merve YILMAZ | C11: Yaşlı Bakım Prog. | D11: Yaşlı Bakım Prog. | E11: Var | F11: 82.73 | G11: 49.638 | H11: 258.76 | I11: 103.51 | J11: 153.14 | K11: Uygundur
G18: 0 | I18: 0 | J18: 0
G19: =G18:J22F19*60% ->  | I19: 0
G20: 0 | I20: 0 | J20: 0
G21: 0 | I21: 0 | J21: 0
G22: 0 | I22: 0 | J22: 0

Sheet MERKEZİ PUAN
A1: (EK-1 MADDE) MERKEZİ PUAN İLE YATAY GEÇİŞ BAŞVURULARI DEĞERLENDİRME ÇİZELGESİ
A2: S.NO | B2: ÖĞRENCİNİN ADI SOYADI | C2: BAŞVURDUĞU PROGRAM | D2: BELGE DURUMU | E2: YKS PUANI | F2: GEÇMEK İSTEDİĞİ PROGRAMIN TABAN PUANI | G2: AÇIKLAMA
A3: 1 | B3: Tuğsem KURTOĞLU | C3: İlk ve Acil Yardım | D3: Var | E3: 346.19352 | F3: 332.78903 | G3: Uygundur
A4: 2 | B4: Azize Sevilay GÖNEN | C4: İlk ve Acil Yardım | D4: Var | E4: 336.9966 | F4: 332.78903 | G4: Uygundur
A5: 3 | B5: Hasan YILDIRIM | C5: İlk ve Acil Yardım | D5: Var | E5: 258.5783 | F5: 290.08091 | G5: YKS Puanı Yetersiz
A6: 4 | B6: Fuat OĞUZ | C6: İlk ve Acil Yardım | D6: Var | E6: 332.399 | F6: 332.78903 | G6: YKS Puanı Yetersiz
A7: 5 | B7: Fırat Oğuz | C7: İlk ve Acil Yardım | D7: Var | E7: 233.353 | F7: 332.78903 | G7: YKS Puanı Yetersiz
A8: 6 | B8: Derya ŞAKÇI | C8: İlk ve Acil Yardım | D8: Var | E8: 281.2226 | F8: 332.78903 | G8: YKS Puanı Yetersiz
A9: 7 | B9: AHMET SAMİ KOCABAŞ | C9: FİZYOTERAPİ PR. | D9: VAR | E9: 318.3181 | F9: 312.80309 | G9: UYGUNDUR
A10: 8 | B10: DENİZ AYTEKİN | C10: FİZYOTERAPİ PR. | D10: VAR | E10: 319.36067 | F10: 312.80309 | G10: UYGUNDUR
A11: 9 | B11: MUSTAFA EMİR AKTOSUN | C11: FİZYOTERAPİ PR. | D11: VAR | E11: 332.27339 | F11: 312.80309 | G11: UYGUNDUR
A12: 10 | B12: NİSA NUR KAYNAK | C12: FİZYOTERAPİ PR. | D12: VAR | E12: 250.31829 | F12: 312.80309 | G12: YKS PUANI YETERSİZ
A13: 11 | B13: YAĞMUR ORHAN | C13: FİZYOTERAPİ PR. | D13: VAR | E13: 283.20098 | F13: 312.80309 | G13: YKS PUANI YETERSİZ
A14: 12 | B14: Melike Sultan Şakar | C14: Sağlık Kurumları İşletmeciliği | D14: Var | E14: 265.13189 | F14: 260.12487 | G14: Uygundur
A15: 13 | B15: Ayşe Beyza Özata | C15: Sağlık Kurumları İşletmeciliği | D15: Var | E15: 245.4877 | F15: 260.12487 | G15: YKS Puanı Yetersiz
A16: 14 | B16: Özlem Akkaş | C16: Sağlık Kurumları İşletmeciliği | D16: Var | E16: 234.00772 | F16: 260.12487 | G16: YKS Puanı Yetersiz
A17: 15 | B17: İpek İŞ | C17: Yaşlı Bakım Prog. | D17: Var | E17: 199.2973 | F17: 183.3106 | G17: Uygundur
